bitfinex/quotes_SOLUSD_20250928
["timestamp","ask_amount","ask_price","bid_price","bid_amount"]
[1759029550662,4.7910126,202.14,202.13,0.69]
[1759029551152,4.64885103,202.14,202.13,0.69]
[1759029551339,4.7910126,202.14,202.13,0.69]
[1759029553954,3.47205128,202.14,202.13,0.69]
[1759029554458,39.34336985,202.15,202.13,0.69]
[1759029555751,38.02440853,202.15,202.13,0.69]
[1759029557257,0.10440853,202.15,202.13,0.69]
[1759029559039,0.10440853,202.15,202.13,2.00896132]
[1759029559577,0.10440853,202.15,202.14,0.69]
[1759029562147,0.10440853,202.15,202.14,5.63706638]
[1759029562667,0.10440853,202.15,202.14,5.61706638]
[1759029562966,0.10440853,202.15,202.14,0.67]
[1759029564770,0.20331619,202.15,202.14,81.17]
[1759029566574,0.09890766,202.15,202.14,81.17]
[1759029566769,0.09890766,202.15,202.14,86.11706638]
[1759029568351,0.09890766,202.15,202.14,81.17]
[1759029570158,0.09890766,202.15,202.14,86.11706638]
[1759029573783,0.09890766,202.15,202.14,88.17714218]
[1759029574476,0.09890766,202.15,202.14,86.11706638]
[1759029576564,0.09890766,202.15,202.14,81.17]
[1759029577181,0.09890766,202.15,202.14,86.11706638]
[1759029577986,0.09890766,202.15,202.14,81.17]
[1759029584795,0.20267648,202.15,202.14,81.17]
[1759029586603,0.10376882,202.15,202.14,81.17]
[1759029589935,0.10376882,202.15,202.14,88.17714218]
[1759029590073,0.09829269,202.17,202.16,82.35423155]
[1759029590387,0.09829269,202.17,202.16,120.25423155]
[1759029590580,0.09829269,202.17,202.16,120.96423155]
[1759029590793,0.09829269,202.17,202.16,118.19415575]
[1759029592498,0.09829269,202.17,202.16,80.29415575]
[1759029599407,2.84836849,202.17,202.16,80.29415575]
[1759029599638,11.1247748,202.17,202.12,0.2]
[1759029599913,2.0600758,202.13,202.12,0.2]
[1759029601398,2.0600758,202.14,202.12,0.2]
[1759029601621,2.0600758,202.15,202.12,0.91]
[1759029601805,3.33007402,202.16,202.13,0.71]
[1759029602110,0.09829269,202.17,202.13,38.61]
[1759029602418,0.09829269,202.17,202.14,0.71]
[1759029602599,0.09829269,202.17,202.15,0.71]
[1759029603401,0.09829269,202.17,202.15,81.00415575]
[1759029604824,0.1011626,202.16,202.15,81.00415575]
[1759029608527,0.1011626,202.16,202.15,80.29415575]
[1759029608919,0.1011626,202.16,202.15,81.00415575]
[1759029612727,0.1011626,202.16,202.15,80.29415575]
[1759029613115,2.1612384,202.16,202.15,80.29415575]
[1759029613927,0.1011626,202.16,202.15,80.29415575]
[1759029614121,0.1011626,202.16,202.15,80.96415575]
[1759029622541,0.1011626,202.16,202.15,80.29415575]
[1759029622733,2.09965595,202.16,202.15,80.29415575]
[1759029623243,1.41965595,202.16,202.15,80.29415575]
[1759029623825,0.1011626,202.16,202.15,80.29415575]
[1759029624950,0.20009864,202.16,202.15,80.29415575]
[1759029625722,0.20009864,202.16,202.15,80.96415575]
[1759029626650,0.09893604,202.16,202.15,80.96415575]
[1759029633446,0.09893604,202.16,202.15,123.81097741]
[1759029633759,0.09893604,202.16,202.15,125.12947076]
[1759029634268,0.09893604,202.16,202.15,123.81097741]
[1759029634946,0.09893604,202.16,202.15,118.86415575]
[1759029638772,0.09893604,202.16,202.15,80.96415575]
[1759029639374,0.09893604,202.16,202.15,118.86415575]
[1759029639874,0.09893604,202.16,202.15,80.96415575]
[1759029640074,0.09893604,202.16,202.15,118.86415575]
[1759029640473,0.09893604,202.16,202.15,80.96415575]
[1759029640855,0.09893604,202.16,202.15,118.86415575]
[1759029642674,0.09893604,202.16,202.15,118.84415575]
[1759029643472,0.09893604,202.16,202.15,80.96415575]
[1759029643679,0.09893604,202.16,202.15,118.84415575]
[1759029644078,0.09893604,202.16,202.15,80.96415575]
[1759029644375,0.09893604,202.16,202.15,118.84415575]
[1759029644578,0.09893604,202.16,202.15,80.96415575]
[1759029644780,0.19443977,202.16,202.15,118.84415575]
[1759029646385,0.19443977,202.16,202.15,80.96415575]
[1759029646579,0.09550373,202.16,202.15,118.84415575]
[1759029648283,0.09550373,202.16,202.15,80.96415575]
[1759029648479,0.09550373,202.16,202.15,118.84415575]
[1759029650186,0.09550373,202.16,202.15,123.79097741]
[1759029650988,0.09550373,202.16,202.15,118.84415575]
[1759029651489,0.09550373,202.16,202.15,118.88415575]
[1759029652582,0.09550373,202.16,202.15,80.29415575]
[1759029652790,0.78550373,202.16,202.15,80.29415575]
[1759029653087,0.09550373,202.16,202.15,80.29415575]
[1759029664611,0.09550373,202.16,202.15,81.00415575]
[1759029664806,0.18846113,202.16,202.15,81.00415575]
[1759029666613,0.0929574,202.16,202.15,81.00415575]
[1759029674908,0.0929574,202.16,202.15,80.29415575]
[1759029676620,0.0929574,202.16,202.13,80.29415575]
[1759029676621,5.43283617,202.16,202.13,80.29415575]
[1759029676932,5.43283617,202.16,202.12,0.2]
[1759029676933,4.02138542,202.15,202.12,0.2]
[1759029677095,1.31849335,202.13,202.12,0.2]
[1759029677299,9.5971899,202.13,202.12,0.2]
[1759029677495,25.86853614,202.13,202.12,0.2]
[1759029678029,14.91408736,202.11,202.1,0.2]
[1759029678318,18.24547278,202.11,202.1,0.2]
[1759029678501,18.93547278,202.11,202.1,0.2]
[1759029678697,20.92171803,202.11,202.1,0.2]
[1759029679202,25.86951873,202.11,202.1,0.2]
[1759029679400,13.59559401,202.1,202.07,0.2]
[1759029679700,20.18806076,202.08,202.02,0.2]
[1759029679919,1.31849335,202.07,202.04,0.87]
[1759029680220,1.31849335,202.07,202.04,0.2]
[1759029680413,39.88849335,202.07,202.04,0.2]
[1759029681225,46.82361735,202.07,202.04,0.2]
[1759029681656,8.94361735,202.07,202.04,0.2]
[1759029681930,46.82361735,202.07,202.04,0.2]
[1759029682332,8.94361735,202.07,202.04,0.2]
[1759029682516,46.82361735,202.07,202.04,0.2]
[1759029683427,8.94361735,202.07,202.04,0.2]
[1759029683629,46.82361735,202.07,202.04,80.7]
[1759029684123,8.94361735,202.07,202.04,80.7]
[1759029684326,46.82361735,202.07,202.04,80.7]
[1759029684627,49.6317654,202.07,202.04,80.7]
[1759029684925,47.67392908,202.07,202.04,80.7]
[1759029685127,9.79392908,202.07,202.04,80.7]
[1759029685343,49.73724978,202.07,202.04,80.7]
[1759029687631,11.85724978,202.07,202.04,80.7]
[1759029687935,49.75724978,202.07,202.04,80.7]
[1759029689432,49.75724978,202.07,202.04,0.2]
[1759029690641,45.0175852,202.07,202.04,0.88]
[1759029691723,7.1175852,202.07,202.04,0.88]
[1759029691929,2.16880508,202.07,202.04,0.88]
[1759029692151,7.1175852,202.07,202.04,0.88]
[1759029692332,45.0175852,202.07,202.04,0.88]
[1759029694439,45.0175852,202.07,202.04,0.2]
[1759029694852,7.1175852,202.07,202.04,0.88]
[1759029695151,45.0175852,202.07,202.04,0.88]
[1759029695852,7.1175852,202.07,202.04,0.88]
[1759029696034,45.0175852,202.07,202.04,0.88]
[1759029697355,7.1175852,202.07,202.04,0.88]
[1759029697563,45.7075852,202.07,202.04,0.2]
[1759029697962,47.7709059,202.07,202.04,0.2]
[1759029699036,23.46649991,202.07,202.04,0.2]
[1759029699445,61.36649991,202.07,202.04,0.2]
[1759029701338,60.67649991,202.07,202.04,0.2]
[1759029701858,61.36649991,202.07,202.04,0.2]
[1759029702445,13.59559401,202.06,202.04,0.2]
[1759029702765,73.73845022,202.07,202.04,0.2]
[1759029702766,54.24891471,202.05,202.04,0.2]
[1759029703059,53.55891471,202.05,202.04,0.2]
[1759029703563,2.0633207,202.05,202.04,0.88]
[1759029703862,39.9633207,202.05,202.04,0.88]
[1759029704564,44.91259068,202.05,202.04,0.88]
[1759029704958,45.00863435,202.05,202.04,0.88]
[1759029706459,45.00863435,202.05,202.04,0.2]
[1759029707143,7.10863435,202.05,202.04,0.2]
[1759029707547,45.00863435,202.05,202.04,0.2]
[1759029708560,45.00863435,202.05,202.04,0.88]
[1759029708975,7.10863435,202.05,202.04,0.88]
[1759029709177,45.00863435,202.05,202.04,0.88]
[1759029709749,7.10863435,202.05,202.04,0.88]
[1759029709968,45.00863435,202.05,202.04,0.88]
[1759029710454,7.10863435,202.05,202.04,0.88]
[1759029710775,0.09604367,202.05,202.04,0.38]
[1759029710954,2.15936437,202.05,202.04,0.38]
[1759029712577,0.09604367,202.05,202.04,80.88]
[1759029716774,0.09604367,202.05,202.04,85.82951494]
[1759029717072,0.09604367,202.05,202.04,87.89283564]
[1759029718156,0.09604367,202.05,202.04,125.79283564]
[1759029718584,0.10488633,202.08,202.07,82.26252738]
[1759029718962,0.10488633,202.08,202.07,82.92252738]
[1759029719165,0.10488633,202.08,202.07,87.8713075]
[1759029719484,0.10488633,202.08,202.07,222.5713075]
[1759029722089,0.10488633,202.08,202.07,236.16690151]
[1759029722291,0.10488633,202.08,202.07,238.23022221]
[1759029722583,1e-08,202.08,202.07,238.23022221]
[1759029722774,1e-08,202.08,202.07,234.10358081]
[1759029722978,1e-08,202.08,202.07,274.06690151]
[1759029723453,1e-08,202.08,202.07,236.16690151]
[1759029723653,1e-08,202.08,202.07,253.47920668]
[1759029723958,1e-08,202.08,202.07,80.85920668]
[1759029724888,0.0971373,202.08,202.07,80.85920668]
[1759029725983,0.0971373,202.08,202.07,80.19920668]
[1759029726681,0.09713729,202.08,202.07,80.19920668]
[1759029728189,0.09334252,202.09,202.08,80.10206939]
[1759029729285,2.83666322,202.09,202.08,80.10206939]
[1759029731085,0.77334252,202.09,202.08,80.10206939]
[1759029731582,0.09334252,202.09,202.08,80.10206939]
[1759029732986,0.78334252,202.09,202.08,80.10206939]
[1759029733987,45.71495358,202.09,202.08,80.10206939]
[1759029734161,40.76666322,202.09,202.05,0.66]
[1759029734362,2.0633207,202.08,202.05,0.66]
[1759029734991,2.0633207,202.06,202.05,80.10206939]
[1759029735162,2.7533207,202.06,202.05,80.10206939]
[1759029736062,2.0633207,202.06,202.05,80.10206939]
[1759029736482,2.0633207,202.07,202.05,80.10206939]
[1759029737086,2.7533207,202.07,202.05,80.10206939]
[1759029737466,2.0633207,202.06,202.05,80.10206939]
[1759029737874,2.7533207,202.06,202.05,80.10206939]
[1759029739972,40.6733207,202.06,202.05,80.10206939]
[1759029741494,2.0633207,202.06,202.05,80.10206939]
[1759029743184,0.09334252,202.09,202.05,80.77206939]
[1759029743185,2.15666322,202.09,202.05,80.77206939]
[1759029743385,0.09334252,202.09,202.06,0.67]
[1759029744792,0.09124488,202.07,202.06,0.67]
[1759029746104,2.15456558,202.07,202.06,80.10206939]
[1759029746569,1.41125475,202.07,202.06,80.10206939]
[1759029747105,7.06003487,202.07,202.06,80.10206939]
[1759029747277,45.00003487,202.07,202.06,80.10206939]
[1759029747791,7.06003487,202.07,202.06,80.10206939]
[1759029748096,45.00003487,202.07,202.06,80.10206939]
[1759029750491,57.37198518,202.07,202.02,80.30206939]
[1759029750696,1.32000987,202.03,202.02,80.30206939]
[1759029750895,1.32000987,202.05,202.02,80.30206939]
[1759029751086,39.28000987,202.05,202.02,80.30206939]
[1759029751289,1.32000987,202.04,202.02,80.97206939]
[1759029751685,0.09124488,202.07,202.03,0.67]
[1759029751884,1.41125475,202.07,202.02,80.30206939]
[1759029752079,1.41125475,202.07,202.04,0.67]
[1759029752384,39.37125475,202.07,202.04,0.67]
[1759029752898,1.32000987,202.06,202.04,0.67]
[1759029753907,1.32000987,202.06,202.02,80.30206939]
[1759029754111,0.09124488,202.07,202.05,0.67]
[1759029754905,0.09124488,202.07,202.05,80.10206939]
[1759029755207,1.41125475,202.07,202.05,80.77206939]
[1759029758306,2.02000987,202.06,202.05,80.10206939]
[1759029759283,40.00000987,202.06,202.05,80.10206939]
[1759029759903,44.94903491,202.06,202.05,80.10206939]
[1759029760807,22.66297785,202.06,202.02,0.2]
[1759029761009,1.32000987,202.03,202.02,0.2]
[1759029761219,39.30000987,202.03,202.02,0.2]
[1759029761802,44.2497698,202.03,202.02,0.2]
[1759029763509,39.30000987,202.03,202.02,0.2]
[1759029764423,37.98,202.03,202.02,0.2]
[1759029764598,39.30000987,202.03,202.02,0.87]
[1759029764792,1.42109522,202.03,202.02,0.2]
[1759029765097,39.38109522,202.03,202.02,0.2]
[1759029765293,1.42109522,202.03,202.02,0.2]
[1759029765495,39.38109522,202.03,202.02,0.2]
[1759029765715,44.33085515,202.03,202.02,0.2]
[1759029765921,6.37085515,202.03,202.02,0.2]
[1759029766416,44.33085515,202.03,202.02,0.2]
[1759029766915,39.38109522,202.03,202.02,80.30206939]
[1759029767218,1.42109522,202.03,202.02,80.30206939]
[1759029767521,39.38109522,202.03,202.02,80.30206939]
[1759029767703,1.42109522,202.03,202.02,80.97206939]
[1759029768022,39.38109522,202.03,202.02,80.97206939]
[1759029768219,1.42109522,202.03,202.02,80.30206939]
[1759029768428,44.33085515,202.03,202.02,80.30206939]
[1759029771424,6.37085515,202.03,202.02,80.30206939]
[1759029771728,44.31085515,202.03,202.02,80.30206939]
[1759029774216,47.63696851,202.03,202.02,80.30206939]
[1759029774600,6.37085515,202.03,202.02,80.30206939]
[1759029774825,39.36109522,202.03,202.02,80.30206939]
[1759029775026,1.42109522,202.03,202.02,81.01206939]
[1759029775323,39.36109522,202.03,202.02,81.01206939]
[1759029775515,1.42109522,202.03,202.02,81.01206939]
[1759029775902,39.36109522,202.03,202.02,81.01206939]
[1759029777018,1.42109522,202.03,202.02,81.01206939]
[1759029777216,39.34109522,202.03,202.02,81.01206939]
[1759029777412,1.42109522,202.03,202.02,80.30206939]
[1759029777921,1.42109522,202.03,202.02,0.2]
[1759029778117,39.34109522,202.03,202.02,0.2]
[1759029778422,44.29085515,202.03,202.02,0.2]
[1759029780132,6.37085515,202.03,202.02,0.2]
[1759029780332,44.29085515,202.03,202.02,0.2]
[1759029781513,6.37085515,202.03,202.02,0.2]
[1759029781726,44.29085515,202.03,202.02,0.2]
[1759029782025,44.98085515,202.03,202.02,0.2]
[1759029782422,7.06085515,202.03,202.02,0.2]
[1759029782821,44.98085515,202.03,202.02,0.2]
[1759029783932,7.06085515,202.03,202.02,0.2]
[1759029784132,48.30236869,202.03,202.02,0.2]
[1759029784628,23.9779627,202.03,202.02,0.2]
[1759029784810,24.08667197,202.03,202.02,0.2]
[1759029785012,62.00667197,202.03,202.02,0.2]
[1759029785226,24.08667197,202.03,202.02,0.2]
[1759029785420,62.00667197,202.03,202.02,0.2]
[1759029785612,24.08667197,202.03,202.02,0.2]
[1759029785817,42.77131803,202.03,202.02,0.2]
[1759029786031,42.79131803,202.03,202.02,0.91]
[1759029786504,1.52980449,202.03,202.02,0.91]
[1759029786706,0.10870927,202.03,202.02,0.91]
[1759029788241,0.10870927,202.03,202.02,2.23000987]
[1759029788625,0.10870927,202.03,202.02,40.21000987]
[1759029789152,0.10870927,202.03,202.02,45.16001482]
[1759029790440,0.10870927,202.03,202.02,138.85767822]
[1759029793435,0.10153019,202.07,202.02,138.85767822]
[1759029793436,63.25557648,202.2,202.07,79.58787308]
[1759029793636,61.26992283,202.2,202.07,79.58787308]
[1759029793830,61.26992283,202.2,202.07,80.24787308]
[1759029794159,3.32239982,202.13,202.07,80.24787308]
[1759029794339,1.42509722,202.11,202.07,80.24787308]
[1759029796446,1.42509722,202.11,202.07,79.58787308]
[1759029797261,1.42509722,202.11,202.07,80.24787308]
[1759029797455,0.10508735,202.11,202.07,80.24787308]
[1759029797764,1.42509722,202.11,202.07,80.24787308]
[1759029802666,1.42509722,202.11,202.07,79.58787308]
[1759029804169,1.32000987,202.11,202.07,79.58787308]
[1759029804857,0.10261798,202.08,202.07,79.58787308]
[1759029805378,0.10261798,202.08,202.07,80.28787308]
[1759029809846,0.10809439,202.1,202.09,79.39524101]
[1759029810046,0.10809439,202.1,202.09,81.45675242]
[1759029810268,0.10809439,202.1,202.09,82.15675242]
[1759029810980,0.10809439,202.1,202.09,87.10504278]
[1759029811279,0.76809439,202.1,202.09,79.39524101]
[1759029811455,2.8296058,202.1,202.09,79.39524101]
[1759029811654,7.77765132,202.1,202.04,80.09524101]
[1759029811876,2.06151141,202.08,202.04,80.09524101]
[1759029812054,2.72151141,202.08,202.04,80.09524101]
[1759029813577,2.06151141,202.06,202.04,79.39524101]
[1759029815374,2.06151141,202.07,202.04,80.09524101]
[1759029815975,2.06151141,202.08,202.04,79.39524101]
[1759029816351,2.06151141,202.08,202.05,0.7]
[1759029817369,2.06151141,202.08,202.05,80.09524101]
[1759029819171,2.06151141,202.08,202.06,0.7]
[1759029819378,2.06151141,202.08,202.05,79.39524101]
[1759029819750,2.72151141,202.08,202.05,79.39524101]
[1759029820854,2.06151141,202.07,202.05,79.39524101]
[1759029821048,2.72151141,202.07,202.05,79.39524101]
[1759029821284,2.06151141,202.06,202.05,79.39524101]
[1759029822078,2.06151141,202.07,202.05,80.09524101]
[1759029822572,0.10809439,202.1,202.06,0.7]
[1759029823053,2.1696058,202.1,202.06,0.7]
[1759029823257,2.06151141,202.09,202.06,79.39524101]
[1759029823457,2.06151141,202.09,202.06,80.09524101]
[1759029824661,2.06151141,202.09,202.07,0.7]
[1759029824862,0.09706416,202.08,202.07,0.7]
[1759029825277,2.15857557,202.08,202.07,0.7]
[1759029825479,0.09706416,202.08,202.07,0.7]
[1759029825856,2.15857557,202.08,202.06,79.39524101]
[1759029826273,2.15857557,202.08,202.07,0.7]
[1759029826479,0.09706416,202.08,202.07,0.7]
[1759029829078,0.09706416,202.08,202.07,80.09524101]
[1759029829961,0.09706416,202.08,202.07,79.39524101]
[1759029830177,2.81857557,202.08,202.07,79.39524101]
[1759029831566,6.13612518,202.08,202.07,79.39524101]
[1759029833174,6.14498798,202.08,202.07,79.39524101]
[1759029835062,5.48498798,202.08,202.07,79.39524101]
[1759029837988,5.48498798,202.08,202.07,80.09524101]
[1759029838188,0.09706416,202.08,202.07,80.09524101]
[1759029841483,0.09706416,202.08,202.07,221.80553254]
[1759029841662,0.09706416,202.08,202.07,219.74402113]
[1759029842076,0.09706416,202.08,202.07,214.79524101]
[1759029843382,0.09706416,202.08,202.07,219.74402113]
[1759029843684,0.09706416,202.08,202.07,214.79524101]
[1759029844068,2.06151141,202.1,202.07,214.79524101]
[1759029844675,2.06151141,202.08,202.07,214.09524101]
[1759029844872,2.16061741,202.08,202.07,214.09524101]
[1759029846264,0.099106,202.08,202.07,214.09524101]
[1759029846468,0.099106,202.08,202.07,214.79524101]
[1759029847085,0.09415119,202.09,202.08,79.29613501]
[1759029847318,0.09415119,202.09,202.08,117.93613501]
[1759029847869,0.09415119,202.09,202.08,122.88467024]
[1759029849483,0.09415119,202.09,202.08,124.94618165]
[1759029851791,0.09415119,202.09,202.08,273.24177566]
[1759029852168,0.09415119,202.09,202.08,275.22683806]
[1759029857293,0.09415119,202.09,202.08,221.62973264]
[1759029857503,0.09747013,202.1,202.09,79.20198382]
[1759029859007,0.09747013,202.1,202.09,79.86198382]
[1759029859503,0.09747013,202.1,202.09,117.82198382]
[1759029859709,0.09747013,202.1,202.09,117.16198382]
[1759029859886,0.09747013,202.1,202.09,124.83178559]
[1759029860210,0.09747013,202.1,202.09,79.20198382]
[1759029860400,0.09747013,202.1,202.09,117.16198382]
[1759029861201,0.09747013,202.1,202.09,79.20198382]
[1759029861400,0.09747013,202.1,202.09,117.16198382]
[1759029861802,0.09747013,202.1,202.09,79.20198382]
[1759029862005,0.09747013,202.1,202.09,117.16198382]
[1759029862689,0.09747013,202.1,202.09,122.11027418]
[1759029863019,0.09747013,202.1,202.09,117.16198382]
[1759029863999,0.09747013,202.1,202.09,122.77027418]
[1759029864202,2.06151141,202.14,202.09,124.83178559]
[1759029864417,2.06151141,202.14,202.1,0.66]
[1759029865010,2.06151141,202.14,202.09,79.20198382]
[1759029865011,2.06151141,202.11,202.09,79.20198382]
[1759029865209,2.06151141,202.1,202.09,79.20198382]
[1759029868591,1.31942756,202.1,202.09,79.20198382]
[1759029870018,1.96942756,202.1,202.09,79.20198382]
[1759029870811,1.31942756,202.1,202.09,79.20198382]
[1759029874717,1.96942756,202.1,202.09,79.20198382]
[1759029878927,1.31942756,202.1,202.09,79.20198382]
[1759029879824,1.96942756,202.1,202.09,79.20198382]
[1759029880719,1.31942756,202.1,202.09,79.20198382]
[1759029885001,1.4181778,202.1,202.09,79.20198382]
[1759029885318,0.09875024,202.1,202.09,79.20198382]
[1759029885508,1.4181778,202.1,202.09,79.20198382]
[1759029888130,2.0681778,202.1,202.09,79.20198382]
[1759029888508,1.4181778,202.1,202.09,79.20198382]
[1759029891715,1.4181778,202.1,202.09,79.87198382]
[1759029891917,1.4181778,202.1,202.09,79.20198382]
[1759029894324,0.09875024,202.1,202.09,79.20198382]
[1759029894531,1.4181778,202.1,202.09,79.20198382]
[1759029896630,1.4181778,202.1,202.09,79.87198382]
[1759029896932,0.09875024,202.1,202.09,79.87198382]
[1759029898733,0.09875024,202.1,202.09,84.82027418]
[1759029901835,0.09875024,202.1,202.09,86.13970174]
[1759029902440,0.09875024,202.1,202.09,84.82027418]
[1759029903432,0.09405531,202.11,202.1,79.10323358]
[1759029903607,0.09405531,202.11,202.1,117.67323358]
[1759029904126,1.31942756,202.13,202.1,117.67323358]
[1759029904428,1.31942756,202.12,202.1,117.00323358]
[1759029904611,1.31942756,202.11,202.1,117.00323358]
[1759029905140,1.42690877,202.11,202.1,117.00323358]
[1759029905525,0.10748121,202.11,202.1,117.00323358]
[1759029905717,1.42690877,202.11,202.1,117.00323358]
[1759029906334,1.42690877,202.11,202.1,79.10323358]
[1759029907348,0.10748121,202.11,202.1,79.10323358]
[1759029908136,0.10748121,202.11,202.1,79.77323358]
[1759029909844,1.42690877,202.11,202.1,79.10323358]
[1759029911109,0.10748121,202.11,202.1,79.10323358]
[1759029911315,0.10748121,202.11,202.1,79.80323358]
[1759029923148,0.10748121,202.11,202.1,84.7512791]
[1759029923947,0.10476434,202.12,202.11,78.99575237]
[1759029924154,1.31942756,202.15,202.11,79.65575237]
[1759029924349,1.31942756,202.15,202.12,0.66]
[1759029924518,4.6498367,202.16,202.12,0.66]
[1759029924724,1.31942756,202.16,202.12,0.66]
[1759029925038,0.09082652,202.14,202.13,0.66]
[1759029925224,0.09082652,202.14,202.13,78.99575237]
[1759029925429,0.09082652,202.14,202.13,79.65575237]
[1759029925621,0.09082652,202.14,202.13,78.99575237]
[1759029931041,0.09082652,202.14,202.13,79.65575237]
[1759029932231,0.09082652,202.14,202.13,83.80154872]
[1759029932642,2.87133594,202.14,202.13,83.14154872]
[1759029932845,7.81840232,202.14,202.09,116.89575237]
[1759029933046,2.06050942,202.11,202.1,3.42579635]
[1759029935052,2.06050942,202.12,202.1,4.08579635]
[1759029935432,2.06050942,202.12,202.1,0.66]
[1759029935632,2.06050942,202.12,202.11,0.66]
[1759029935945,2.06050942,202.12,202.11,2.72050942]
[1759029936148,2.06050942,202.12,202.11,81.71626179]
[1759029937026,2.06050942,202.12,202.11,81.05626179]
[1759029937628,2.06050942,202.12,202.11,81.71626179]
[1759029939655,0.09082652,202.14,202.11,81.71626179]
[1759029939843,2.06050942,202.13,202.12,0.66]
[1759029940244,2.06050942,202.13,202.11,78.99575237]
[1759029940451,2.06050942,202.13,202.12,2.06050942]
[1759029941754,2.06050942,202.13,202.12,2.72050942]
[1759029941954,2.15133594,202.14,202.12,2.72050942]
[1759029942159,2.15133594,202.14,202.12,81.71626179]
[1759029942336,2.15133594,202.14,202.12,79.65575237]
[1759029942662,2.15133594,202.14,202.13,2.15133594]
[1759029942854,2.87133594,202.14,202.13,2.15133594]
[1759029943045,2.87133594,202.14,202.12,78.99575237]
[1759029943247,2.06050942,202.13,202.12,78.99575237]
[1759029943447,2.06050942,202.13,202.12,84.03784645]
[1759029944959,2.1662482,202.13,202.12,84.03784645]
[1759029951550,2.1662482,202.13,202.12,84.72784645]
[1759029952473,2.1662482,202.13,202.12,84.03784645]
[1759029953268,2.1662482,202.13,202.12,84.72784645]
[1759029953466,0.10573878,202.13,202.12,84.72784645]
[1759029958550,0.10573878,202.13,202.12,84.03784645]
[1759029958759,6.20208546,202.13,202.12,78.99575237]
[1759029960954,11.14939659,202.13,202.1,6.20208546]
[1759029961269,2.06050942,202.11,202.09,78.99575237]
[1759029961469,2.76050942,202.1,202.09,78.99575237]
[1759029961655,6.09493228,202.1,202.09,78.99575237]
[1759029961850,5.39493228,202.1,202.09,78.99575237]
[1759029963271,2.06050942,202.1,202.09,78.99575237]
[1759029963969,2.76050942,202.1,202.09,78.99575237]
[1759029964171,2.06050942,202.1,202.09,78.99575237]
[1759029965062,2.16882934,202.1,202.09,78.99575237]
[1759029970975,2.16882934,202.1,202.09,79.69575237]
[1759029971766,0.10831992,202.1,202.09,79.69575237]
[1759029972280,0.10831992,202.1,202.09,83.12136827]
[1759029973485,0.10831992,202.1,202.09,121.02136827]
[1759029973785,0.09535869,202.12,202.11,78.78918102]
[1759029973960,0.09535869,202.12,202.11,39.96050942]
[1759029974159,0.09535869,202.12,202.11,40.66050942]
[1759029974574,0.09535869,202.12,202.11,42.64567034]
[1759029974760,0.09535869,202.12,202.11,40.58516092]
[1759029977684,0.09535869,202.12,202.11,119.37434194]
[1759029977860,0.09535869,202.12,202.11,81.47434194]
[1759029978067,0.09535869,202.12,202.11,119.37434194]
[1759029978274,0.09535869,202.12,202.11,80.77434194]
[1759029980970,2.15586811,202.12,202.11,80.77434194]
[1759029983366,2.15586811,202.12,202.11,81.47434194]
[1759029983791,0.09535869,202.12,202.11,81.47434194]
[1759029984087,2.06050942,202.13,202.11,81.47434194]
[1759029984483,2.06050942,202.13,202.11,78.78918102]
[1759029984781,2.06050942,202.13,202.12,4.94686102]
[1759029984985,2.15706202,202.13,202.12,4.94686102]
[1759029986289,2.82706202,202.13,202.12,4.94686102]
[1759029986471,2.82706202,202.13,202.11,78.78918102]
[1759029986472,7.77437315,202.13,202.11,78.78918102]
[1759029986680,6.06184389,202.12,202.11,78.78918102]
[1759029987494,6.06184389,202.12,202.03,0.7]
[1759029987803,3.33133447,202.11,202.06,14.8960997]
[1759029987976,3.33133447,202.1,202.06,14.8960997]
[1759029988292,4.00133447,202.09,202.06,14.8960997]
[1759029988601,43.49853523,202.08,202.06,14.8960997]
[1759029988781,0.67,202.07,202.03,0.7]
[1759029988977,1.32014687,202.04,202.02,0.2]
[1759029989189,1.32014687,202.03,202.02,0.2]
[1759029989588,1.32014687,202.03,202.02,15.09757914]
[1759029989790,1.32014687,202.03,202.02,15.79757914]
[1759029990094,1.32014687,202.04,202.02,15.79757914]
[1759029990284,1.32014687,202.04,202.03,0.7]
[1759029990882,1.32014687,202.04,202.03,15.59757914]
[1759029992071,1.32014687,202.04,202.03,0.7]
[1759029992477,1.32014687,202.04,202.03,81.2]
[1759029992778,37.9,202.07,202.03,81.2]
[1759029992980,1.32014687,202.06,202.04,0.7]
[1759029993790,1.32014687,202.06,202.03,80.5]
[1759029993791,1.32014687,202.06,202.05,0.7]
[1759029994682,1.32014687,202.06,202.03,81.2]
[1759029994892,1.32014687,202.05,202.03,81.2]
[1759029995998,1.32014687,202.05,202.04,0.7]
[1759029996178,1.32014687,202.05,202.03,80.5]
[1759029996378,1.32014687,202.05,202.03,81.2]